[Event "15th Deltalift Open 2018"]
[Site "Halmstad"]
[Date "2018.05.10"]
[Round "4"]
[White "Linusson, Lasse"]
[Black "Silseth, Simon"]
[Result "0-1"]
[ECO "B20"]
[WhiteElo "1962"]
[BlackElo "2239"]
[Annotator "NA"]
[PlyCount "116"]
[EventDate "2018.??.??"]
[EventType "swiss"]
[EventCountry "SWE"]
[SourceTitle "playchess.com"]
[Source "ChessBase"]
[SourceQuality "1"]
[TimeControl "1800+12"]

1. e4 {[%emt 0:00:00]} c5 {[%emt 0:00:07]} 2. a3 {[%emt 0:00:00]} g6 {[%emt 0:00:07]} 3. b4 {[%emt 0:00:00] B20: Sicilian: Unusual White 2nd moves} (3. Nc3 Bg7 4. Bc4 Nc6 5. d3 d6 6. h4 Nf6 7. Nge2 h5 8. Bg5 Nd4 9. Nxd4 cxd4 10. Nd5 Nxd5 11. Bxd5 {1-0 (62) Carlsen,M (2832)-Guseinov,G (2645) chess.com INT 2017}) 3... Bg7 {[%emt 0:00:03]} 4. Nc3 {[%emt 0:00:03]} d6 {[%emt 0:00:47]} 5. Nge2 {[%emt 0:00:26]} Nf6 {[%emt 0:00:08]} 6. Rb1 {[%emt 0:00:10]} O-O {[%emt 0:00:23]} 7. g3 {[%emt 0:00:46]} Nc6 {[%emt 0:01:54]} 8. Bg2 {[%emt 0:00:13]} Nd4 {[%emt 0:02:03]} 9. Nxd4 $146 {[%emt 0:02:22]} ({Predecessor:} 9. O-O Qc7 10. d3 Bg4 {½-½ (30) Vlasveld,W (2483)-Staratorzhsky,V (2418) ICCF email 2009}) 9... cxd4 {[%emt 0:00:02]} 10. Nd5 {[%emt 0:00:42]} Nxd5 {[%emt 0:00:39]} 11. exd5 {[%emt 0:00:06]} Bf5 {[%emt 0:00:15]} 12. O-O {[%emt 0:04:32]} Rc8 {[%emt 0:01:11]} 13. d3 {[%emt 0:00:46]} Qc7 {[%emt 0:02:04]} 14. Rb2 {[%emt 0:00:59]} Qd7 {[%emt 0:00:30]} 15. Re1 {[%emt 0:01:26]} Rc3 {[%emt 0:02:43]} 16. Ra2 {[%emt 0:02:29]} Rfc8 {[%emt 0:00:04]} 17. Bd2 {[%emt 0:01:43]} R3c7 {[%emt 0:00:18]} 18. a4 {[%emt 0:00:43]} e5 {[%emt 0:01:52]} 19. b5 {[%emt 0:02:55]} h5 {[%emt 0:02:01]} 20. Qb1 {[%emt 0:00:56]} b6 {[%emt 0:00:17]} 21. a5 {[%emt 0:01:51]} Rc5 {[%emt 0:00:27]} 22. Rb2 {[%emt 0:02:21]} Qc7 {[%emt 0:01:49]} 23. axb6 {[%emt 0:00:50]} axb6 {[%emt 0:00:49]} 24. Bb4 {[%emt 0:01:56]} Rxb5 {[%emt 0:04:39]} (24... Rxc2 $19 {and Black stays clearly on top.} 25. Be4 Bxe4 26. Rxc2 Qxc2 27. Qxc2 Rxc2 28. dxe4 Bf8) 25. Qa2 {[%emt 0:01:19]} Bd7 {[%emt 0:00:42]} 26. Ra1 {[%emt 0:00:17]} Bf8 {[%emt 0:00:34]} 27. Qa6 {[%emt 0:00:44]} Rb8 {[%emt 0:01:06]} 28. Qa2 {[%emt 0:00:22] [#]} Qb7 {[%emt 0:01:18]} ({Black should play} 28... h4 $1 $17 {[%mdl 512]}) 29. Rb3 {[%emt 0:01:30]} Rc8 {[%emt 0:00:26]} 30. Qa7 {[%emt 0:00:22]} ({White should try} 30. h4 $15) 30... Qxa7 {[%emt 0:00:28]} 31. Rxa7 {[%emt 0:00:01]} Be8 {[%emt 0:01:14]} 32. Ra2 f5 {[%emt 0:00:21]} 33. Kf1 $17 {[%emt 0:00:19]} Bf7 {[%emt 0:00:20]} 34. Rbb2 {[%emt 0:01:19]} Bxd5 {[%emt 0:00:07]} 35. Bxd5+ {[%emt 0:00:03]} Rxd5 {[%emt 0:00:01]} 36. Ra6 {[%emt 0:00:11]} Rb5 {[%emt 0:00:09]} 37. Ra7 d5 {[%emt 0:00:46]} 38. Ra4 {[%emt 0:00:52]} Bxb4 {[%emt 0:00:08]} 39. Rbxb4 {[%emt 0:00:25]} Rxb4 {[%emt 0:00:04]} 40. Rxb4 {[%emt 0:00:01]} Rxc2 {[%emt 0:00:33]} 41. Rxb6 {[%emt 0:00:00]} Kg7 {[%emt 0:00:12]} 42. Rd6 {[%emt 0:00:02]} Rd2 {[%emt 0:00:51]} 43. Rxd5 {[%emt 0:00:02]} Kf6 {[%emt 0:00:02]} 44. Rd6+ {[%emt 0:00:06]} Kf7 {[%emt 0:00:02]} 45. Rd5 {[%emt 0:00:04]} Ke6 {[%emt 0:00:00]} 46. Rd8 {[%emt 0:00:03]} Rxd3 {[%emt 0:00:02]} 47. Ke2 {[%emt 0:00:02]} Ra3 {[%emt 0:00:05]} 48. Re8+ {[%emt 0:00:03]} Kf6 {[%emt 0:00:03]} 49. Rf8+ {[%emt 0:00:04]} Ke7 {[%emt 0:00:01]} 50. Rg8 {[%emt 0:00:03]} Kf7 {[%emt 0:00:04]} 51. Rb8 {[%emt 0:00:08]} e4 {[%emt 0:00:04]} 52. Rb6 {[%emt 0:00:28]} Ra2+ {[%emt 0:00:09]} 53. Ke1 {[%emt 0:00:02]} d3 {[%emt 0:00:22]} 54. Rd6 {[%emt 0:00:18]} g5 {[%emt 0:00:27]} 55. h3 {[%emt 0:00:08]} Ra1+ {[%emt 0:00:16]} 56. Kd2 {[%emt 0:00:03]} Rf1 {[%emt 0:00:07]} 57. Ke3 {[%emt 0:00:11]} Re1+ {[%emt 0:00:03]} 58. Kd4 {[%emt 0:00:11]} d2 0-1

[Event "15th Deltalift Open 2018"]
[Site "Halmstad"]
[Date "2018.05.10"]
[Round "4"]
[White "Karlsson, Ulf"]
[Black "Blomstrom, Lars"]
[Result "1/2-1/2"]
[ECO "C47"]
[WhiteElo "1959"]
[BlackElo "2163"]
[Annotator "NA"]
[PlyCount "54"]
[EventDate "2018.??.??"]
[EventType "swiss"]
[EventCountry "SWE"]
[SourceTitle "playchess.com"]
[Source "ChessBase"]
[SourceQuality "1"]
[TimeControl "1800+12"]

1. e4 {[%emt 0:00:00]} e5 {[%emt 0:00:03]} 2. Nf3 {[%emt 0:00:00]} Nc6 {[%emt 0:00:01]} 3. Nc3 {[%emt 0:00:00]} Nf6 {[%emt 0:00:10]} 4. d4 {[%emt 0:00:00]} exd4 {[%emt 0:00:09]} 5. Nxd4 {[%emt 0:00:00]} Bb4 {[%emt 0:00:28]} 6. Nxc6 {[%emt 0:00:25]} bxc6 {[%emt 0:00:03]} 7. Bd3 {[%emt 0:00:03]} O-O {[%emt 0:00:50]} 8. O-O {[%emt 0:00:11]} d5 {[%emt 0:00:03]} 9. exd5 {[%emt 0:00:16]} cxd5 {[%emt 0:00:01]} 10. Bg5 {[%emt 0:00:10]} c6 {[%emt 0:00:13]} 11. Qf3 {[%emt 0:00:07]} Rb8 {[%emt 0:00:32]} 12. Bxf6 {[%emt 0:03:28]} Qxf6 {[%emt 0:00:07]} 13. Qxf6 {[%emt 0:00:04]} gxf6 {[%emt 0:00:02]} 14. Ne2 {[%emt 0:00:13]} Bd6 {[%emt 0:04:30]} 15. b3 {[%emt 0:01:08]} a5 {[%emt 0:02:34]} 16. Rad1 {[%emt 0:04:04]} Rb4 {[%emt 0:06:37]} 17. c3 {[%emt 0:02:56]} Rb6 {[%emt 0:00:11]} 18. Nd4 {[%emt 0:01:15]} Re8 {[%emt 0:03:16]} 19. Rfe1 {[%emt 0:00:58]} Re5 {[%emt 0:01:55]} 20. Nf3 {[%emt 0:02:22]} Kg7 {[%emt 0:03:45]} 21. Nxe5 {[%emt 0:06:02]} fxe5 {[%emt 0:00:02]} 22. c4 {[%emt 0:01:09]} Rb4 {[%emt 0:01:36]} 23. Be4 {[%emt 0:02:56]} f5 {[%emt 0:01:49]} 24. Bxd5 {[%emt 0:00:03]} cxd5 {[%emt 0:00:02]} 25. Rxd5 {[%emt 0:00:02]} Bc7 {[%emt 0:00:16]} 26. Red1 {[%emt 0:00:45]} Rb7 {[%emt 0:00:20]} 27. c5 {[%emt 0:00:05]} Be6 1/2-1/2

[Event "15th Deltalift Open 2018"]
[Site "Halmstad"]
[Date "2018.05.10"]
[Round "4"]
[White "Rasti, Arvin"]
[Black "Cramling Bellon, Anna"]
[Result "0-1"]
[ECO "D52"]
[WhiteElo "1956"]
[BlackElo "2153"]
[Annotator "NA"]
[PlyCount "82"]
[EventDate "2018.??.??"]
[EventType "swiss"]
[EventCountry "SWE"]
[SourceTitle "playchess.com"]
[Source "ChessBase"]
[SourceQuality "1"]
[TimeControl "1800+12"]

1. d4 {[%emt 0:00:00]} d5 {[%emt 0:00:01]} 2. c4 {[%emt 0:00:00]} e6 {[%emt 0:00:01]} 3. Nc3 {[%emt 0:00:00]} c6 {[%emt 0:00:02]} 4. Nf3 {[%emt 0:00:00]} Nf6 {[%emt 0:00:04]} 5. Bg5 {[%emt 0:00:05]} Nbd7 {[%emt 0:00:05]} 6. e3 {[%emt 0:00:03]} Qa5 {[%emt 0:00:01]} 7. Qc2 {[%emt 0:00:04]} Bb4 {[%emt 0:07:04]} 8. Nd2 {[%emt 0:00:01]} dxc4 {[%emt 0:04:54]} 9. Bxf6 {[%emt 0:00:02]} Nxf6 {[%emt 0:00:01]} 10. Nxc4 {[%emt 0:00:01]} Qc7 {[%emt 0:00:01]} 11. Be2 {[%emt 0:00:05]} O-O {[%emt 0:01:06]} 12. O-O {[%emt 0:00:02]} Bd7 {[%emt 0:00:10]} 13. Rfd1 {[%emt 0:01:14]} Rfd8 {[%emt 0:00:05]} 14. Rac1 {[%emt 0:02:04]} Rac8 {[%emt 0:00:37]} 15. a3 {[%emt 0:00:23]} Be7 {[%emt 0:00:03]} 16. h3 {[%emt 0:04:36]} a5 {[%emt 0:06:53]} 17. Ne5 {[%emt 0:03:13]} Bd6 {[%emt 0:02:14]} 18. f4 {[%emt 0:00:58]} c5 {[%emt 0:00:45]} 19. Ne4 {[%emt 0:03:49]} Bxe5 {[%emt 0:03:08]} 20. fxe5 {[%emt 0:00:58]} Nxe4 {[%emt 0:00:02]} 21. Qxe4 {[%emt 0:00:02]} Bc6 {[%emt 0:00:02]} 22. Qc2 {[%emt 0:01:28]} cxd4 {[%emt 0:00:14]} 23. exd4 {[%emt 0:00:05]} Qb6 {[%emt 0:02:21]} 24. Qc3 {[%emt 0:02:20]} h6 {[%emt 0:01:33]} 25. Qd2 {[%emt 0:04:38]} Ba4 {[%emt 0:00:34]} 26. Rxc8 {[%emt 0:03:34]} Rxc8 {[%emt 0:00:01]} 27. Rf1 {[%emt 0:00:01]} Rc2 {[%emt 0:01:00]} 28. Qe3 {[%emt 0:00:56]} Qxb2 {[%emt 0:00:11]} 29. Bf3 {[%emt 0:00:01]} Bc6 {[%emt 0:01:12]} 30. Kh1 {[%emt 0:01:03]} Rxg2 {[%emt 0:00:26]} 31. Bxc6 {[%emt 0:00:23]} Rh2+ 32. Kg1 bxc6 {[%emt 0:00:45]} 33. Qf3 {[%emt 0:00:06]} Kh8 {[%emt 0:00:20]} 34. Qg3 {[%emt 0:00:11]} Rd2 {[%emt 0:00:39]} 35. Rxf7 {[%emt 0:02:13]} Qxd4+ {[%emt 0:00:18]} 36. Rf2 {[%emt 0:00:01]} Rxf2 {[%emt 0:00:12]} 37. Qxf2 {[%emt 0:00:00]} Qxe5 {[%emt 0:00:10]} 38. h4 {[%emt 0:00:11]} c5 {[%emt 0:00:06]} 39. Kg2 {[%emt 0:00:17]} Qe4+ {[%emt 0:00:08]} 40. Kh3 {[%emt 0:00:01]} Qf5+ {[%emt 0:00:02]} 41. Qxf5 {[%emt 0:00:03]} exf5 {[%emt 0:00:01]} 0-1

[Event "15th Deltalift Open 2018"]
[Site "Halmstad"]
[Date "2018.05.11"]
[Round "6"]
[White "Sorensen, Hampus"]
[Black "Bohman Karlholm, Adrian"]
[Result "1/2-1/2"]
[ECO "D31"]
[WhiteElo "2176"]
[BlackElo "2019"]
[Annotator "NA RC"]
[PlyCount "65"]
[EventDate "2018.??.??"]
[EventType "swiss"]
[EventCountry "SWE"]
[SourceTitle "playchess.com"]
[Source "ChessBase"]
[SourceQuality "1"]
[TimeControl "40/5400+30:1800+30"]

1. d4 {[%emt 0:00:00]} d5 {[%emt 0:00:08]} 2. c4 {[%emt 0:00:00]} e6 {[%emt 0:00:07]} 3. Nc3 {[%emt 0:00:24]} c6 {[%emt 0:00:33]} 4. e3 {[%emt 0:01:02]} f5 {[%emt 0:00:30]} 5. Nf3 {[%emt 0:01:04]} Nf6 {[%emt 0:00:24]} 6. Bd3 {[%emt 0:01:39]} Bd6 {[%emt 0:01:00]} 7. O-O {[%emt 0:01:02]} O-O {[%emt 0:00:24]} 8. b3 {[%emt 0:09:38]} Ne4 {[%emt 0:04:05]} 9. Bb2 {[%emt 0:01:20]} Nd7 {[%emt 0:01:56]} 10. Qc2 {[%emt 0:03:08] LiveBook: 12 Games A85: Dutch Defence: 2 c4 Nf6 3 Nc3} (10. Ne2 b6 11. b4 Rb8 12. b5 Bb7 13. cxd5 cxd5 14. Qa4 Qe7 15. Qb3 Ra8 16. a4 a5 17. Ba3 Bxa3 18. Rxa3 {1-0 (54) Morozevich,A (2758)-Timofeev,A (2616) Loo 2013}) 10... g5 {[%emt 0:11:57]} 11. Ne2 {[%emt 0:05:21]} Qf6 {[%emt 0:09:14]} 12. Ng3 {[%emt 0:27:14]} ({White should try} 12. g3 $11) 12... g4 {[%emt 0:05:54]} 13. Bxe4 $146 {[%emt 0:03:52]} ({Predecessor:} 13. Ne5 Nxe5 14. Nh5 Qh8 15. dxe5 Bxe5 16. Bxe5 Qxe5 17. f3 Nc5 18. Rae1 Nxd3 19. Qxd3 Bd7 20. e4 fxe4 {0-1 (20) Gromark,P (2056)-Ziegler,A (2327) Vaxjo 2015}) 13... fxe4 {[%emt 0:02:20]} 14. Nd2 {[%emt 0:01:54]} Rf7 {[%emt 0:12:23]} 15. Rae1 {[%emt 0:04:45]} Qh4 {[%emt 0:01:35]} 16. Re2 {[%emt 0:03:50]} Nf6 {[%emt 0:05:51]} 17. f4 {[%emt 0:05:14]} gxf3 {[%emt 0:12:58]} 18. gxf3 {[%emt 0:00:28]} Rg7 {[%emt 0:01:03]} 19. Rg2 {[%emt 0:02:26]} Bxg3 {[%emt 0:01:44]} 20. hxg3 {[%emt 0:00:08]} Rxg3 {[%emt 0:00:24]} 21. Rff2 {[%emt 0:00:52]} Kh8 {[%emt 0:06:55]} 22. Rxg3 {[%emt 0:11:22]} Qxg3+ {[%emt 0:00:07]} 23. Kf1 {[%emt 0:00:09]} Bd7 {[%emt 0:02:06]} 24. Ba3 {[%emt 0:02:14]} Rg8 {[%emt 0:01:27]} 25. Be7 {[%emt 0:03:26]} Rg6 {[%emt 0:00:58]} 26. Ke2 {[%emt 0:03:20]} Rh6 {[%emt 0:05:40]} 27. Qd1 {[%emt 0:02:56]} (27. fxe4 $17 Ng4 28. Rf8+ Kg7 29. Nf1 Qg2+ 30. Kd3 Qxe4+ 31. Kc3 Qxc2+ 32. Kxc2) 27... exf3+ {[%emt 0:01:02]} (27... e5 $19 28. Nf1 Qg7 29. dxe5 Qxe7 30. exf6 Rxf6) 28. Rxf3 {[%emt 0:00:32]} Qg2+ {[%emt 0:05:57]} 29. Kd3 {[%emt 0:00:14]} Ne4 {[%emt 0:01:25]} 30. Nxe4 $4 {[%emt 0:02:08]} (30. Rf8+ $15 Kg7 31. Nxe4 Qxe4+ 32. Kc3) 30... dxe4+ {[%emt 0:00:04]} 31. Kxe4 {[%emt 0:00:01]} Rh3 $2 {[%emt 0:02:14]} (31... Rh1 $19 32. Qxh1 Qxh1) 32. Kf4 $19 {[%emt 0:01:06]} (32. Qf1 $11 Qg6+ 33. Ke5 Qh5+ 34. Ke4 Qg6+ 35. Ke5 Qh5+ 36. Ke4 Qg6+) 32... Qh2+ {[%emt 0:01:30]} 33. Ke4 {[%emt 0:00:08]} 1/2-1/2

[Event "15th Deltalift Open 2018"]
[Site "Halmstad"]
[Date "2018.05.12"]
[Round "8"]
[White "Lokander, Martin"]
[Black "Silseth, Simon"]
[Result "1-0"]
[ECO "D37"]
[WhiteElo "2386"]
[BlackElo "2239"]
[Annotator "ChessBase"]
[PlyCount "59"]
[EventDate "2018.??.??"]
[EventType "swiss"]
[EventCountry "SWE"]
[SourceTitle "playchess.com"]
[Source "ChessBase"]
[SourceQuality "1"]
[TimeControl "1800+12"]

1. d4 {[%emt 0:00:00]} d5 {[%emt 0:00:00]} 2. c4 {[%emt 0:00:00]} e6 {[%emt 0:00:00]} 3. Nf3 {[%emt 0:00:00]} Nf6 {[%emt 0:00:00]} 4. Nc3 {[%emt 0:00:00]} Be7 {[%emt 0:00:00]} 5. Bf4 {[%emt 0:00:00]} O-O {[%emt 0:00:00]} 6. e3 {[%emt 0:00:00]} c6 {[%emt 0:00:00]} 7. Qc2 {[%emt 0:00:00]} b6 {[%emt 0:00:00]} 8. cxd5 {[%emt 0:00:00]} exd5 {[%emt 0:00:00]} 9. Bd3 {[%emt 0:00:00]} Bb7 {[%emt 0:00:00]} 10. h4 {[%emt 0:00:00]} Nbd7 {[%emt 0:00:00]} 11. Ng5 {[%emt 0:00:00]} h6 {[%emt 0:00:00]} 12. g4 {[%emt 0:00:00]} Re8 {[%emt 0:00:00]} 13. Bh7+ {[%emt 0:00:00]} Kf8 {[%emt 0:00:00]} 14. Nxf7 {[%emt 0:00:00]} Kxf7 {[%emt 0:00:00]} 15. Qg6+ {[%emt 0:00:00]} Kf8 {[%emt 0:00:00]} 16. g5 {[%emt 0:00:00]} Nxh7 {[%emt 0:00:00]} 17. gxh6 {[%emt 0:00:00]} Bf6 {[%emt 0:00:00]} 18. Qxh7 {[%emt 0:00:00]} Kf7 {[%emt 0:00:00]} 19. Rg1 {[%emt 0:00:00]} Nf8 {[%emt 0:00:00]} 20. Rxg7+ {[%emt 0:00:00]} Ke6 {[%emt 0:00:00]} 21. Qg8+ {[%emt 0:00:00]} Kf5 {[%emt 0:00:00]} 22. Rg3 {[%emt 0:00:00]} Ng6 {[%emt 0:00:00]} 23. Qxg6+ {[%emt 0:00:00]} Ke6 {[%emt 0:00:00]} 24. Rg5 {[%emt 0:00:00]} Kd7 {[%emt 0:00:00]} 25. Qf5+ {[%emt 0:00:00]} Re6 {[%emt 0:00:00]} 26. Rg6 {[%emt 0:00:00]} Qe7 {[%emt 0:00:40]} 27. Rc1 {[%emt 0:00:00]} Rc8 {[%emt 0:01:45]} 28. h7 {[%emt 0:00:00]} Bxd4 {[%emt 0:03:21]} 29. Nxd5 {[%emt 0:00:00]} cxd5 {[%emt 0:00:05]} 30. Rxc8 {[%emt 0:00:00]} 1-0

[Event "15th Deltalift Open 2018"]
[Site "Halmstad"]
[Date "2018.05.12"]
[Round "8"]
[White "Bellon Lopez, Juan Manuel"]
[Black "Linusson, Pelle"]
[Result "1/2-1/2"]
[ECO "A45"]
[WhiteElo "2344"]
[BlackElo "2211"]
[Annotator "NA"]
[PlyCount "107"]
[EventDate "2018.??.??"]
[EventType "swiss"]
[EventCountry "SWE"]
[SourceTitle "playchess.com"]
[Source "ChessBase"]
[SourceQuality "1"]
[TimeControl "1800+12"]

{[%evp 8,101,20,2,32,5,32767,32767,12,-31,0,-106,-133,-150,-132,-135,-133,-136,-128,32767,-125,-136,-122,32767,32767,-126,32767,32767,32767,32767,32767,-145,32767,32767,32767,32767,32767,-193,-175,-186,-202,-204,32767,-222,32767,-242,-187,-198,-190,32767,32767,-200,-217,-222,32767,-202,-200,32767,32767,32767,-200,-220,-194,32767,32767,32767,32767,32767,-130,32767,-170,-167,32767,-285,32767,-168,32767,32767,32767,32767,32767,32767,-103,-109,-101,32767,-103,-102,-100,-101,0,-105,32767,-106,-106,-122]} 1. d4 {[%emt 0:00:00]} Nf6 {[%emt 0:00:00]} 2. Bg5 {[%emt 0:00:00]} c5 {[%emt 0:00:00]} 3. Bxf6 {[%emt 0:00:00]} gxf6 {[%emt 0:00:00]} 4. d5 {[%emt 0:00:00]} Qb6 {[%emt 0:00:00]} 5. Qc1 {[%emt 0:00:00]} Bg7 {[%emt 0:00:00]} 6. e3 {[%emt 0:00:00]} f5 {[%emt 0:00:00]} 7. c3 {[%emt 0:00:00]} Na6 {[%emt 0:00:00] LiveBook: 7 Games A45: Trompowsky Attack} (7... d6 8. Qd2 Nd7 9. Nh3 Nf6 10. Nf4 e5 11. dxe6 fxe6 12. Be2 Bd7 13. O-O O-O-O 14. a4 a6 15. a5 Qc7 {1-0 (35) Milov,V (2622)-Salgado Lopez,I (2622) Dubai 2014}) 8. Na3 {[%emt 0:00:00]} Nc7 {[%emt 0:00:00]} 9. Qd2 {[%emt 0:00:00] [#]} (9. Bc4 $11 {keeps the balance.}) 9... Nxd5 $1 {[%emt 0:00:00]} 10. Nc4 {[%emt 0:00:00]} Qc6 {[%emt 0:00:00]} 11. Na5 {[%emt 0:00:00]} Qc7 {[%emt 0:00:00]} 12. Qxd5 {[%emt 0:00:00]} Qxa5 {[%emt 0:00:00]} 13. Ne2 {[%emt 0:00:00]} e6 {[%emt 0:00:00]} 14. Qd6 $146 {[%emt 0:00:00]} ({Predecessor:} 14. Qf3 d5 15. g4 fxg4 16. Qxg4 {0-1 (34) Israel,G (2120)-Primel,D (2030) Cappelle-la-Grande 1999}) 14... Qb6 {[%emt 0:00:00]} 15. Qxb6 {[%emt 0:00:00]} axb6 {[%emt 0:00:00]} 16. Nf4 {[%emt 0:00:00]} d5 {[%emt 0:00:00]} 17. Bb5+ {[%emt 0:00:00]} Bd7 {[%emt 0:00:00]} 18. Bxd7+ {[%emt 0:00:00]} Kxd7 {[%emt 0:00:00]} 19. Nh5 {[%emt 0:00:00]} Be5 {[%emt 0:00:00]} 20. f4 {[%emt 0:00:00]} Bd6 {[%emt 0:00:00]} 21. a3 {[%emt 0:00:00]} Ke7 {[%emt 0:00:00]} 22. O-O-O {[%emt 0:00:00]} (22. Kf2 $17 {is a better defense.}) 22... b5 {[%emt 0:00:00]} 23. Ng3 {[%emt 0:00:00]} Rhg8 {[%emt 0:00:00]} 24. Rhg1 {[%emt 0:00:00]} b4 {[%emt 0:00:00]} 25. axb4 {[%emt 0:00:00]} cxb4 {[%emt 0:00:00]} 26. cxb4 {[%emt 0:00:00]} Bxb4 {[%emt 0:00:00]} 27. Kb1 {[%emt 0:00:00]} Bc5 {[%emt 0:00:00]} 28. Rd3 {[%emt 0:00:00]} Ra4 {[%emt 0:00:13]} 29. Rc1 {[%emt 0:00:00]} b6 {[%emt 0:01:59]} 30. Rc2 {[%emt 0:00:00]} h5 {[%emt 0:06:09]} 31. Re2 {[%emt 0:03:51]} Rga8 {[%emt 0:03:08]} 32. Nxh5 {[%emt 0:05:50]} Ra1+ {[%emt 0:01:56]} 33. Kc2 {[%emt 0:00:00]} Rh8 {[%emt 0:00:09]} 34. Ng3 {[%emt 0:00:00]} Rxh2 {[%emt 0:00:00]} 35. Rd1 {[%emt 0:00:00]} Rxd1 {[%emt 0:09:02]} 36. Kxd1 {[%emt 0:00:00]} Kf6 {[%emt 0:00:29]} 37. Kc2 {[%emt 0:02:55]} d4 {[%emt 0:04:08]} 38. exd4 {[%emt 0:01:15]} Bxd4 {[%emt 0:00:35]} 39. Kd3 {[%emt 0:00:27]} Bc5 {[%emt 0:00:26]} 40. Nf1 {[%emt 0:03:58]} (40. Rc2 $142) 40... Rh1 {[%emt 0:01:51]} 41. Nd2 {[%emt 0:02:58]} b5 {[%emt 0:06:10]} 42. Nf3 {[%emt 0:04:45]} Rf1 {[%emt 0:01:26]} 43. Rc2 {[%emt 0:04:19]} Bd6 {[%emt 0:00:00]} 44. Ke2 {[%emt 0:00:00]} Rb1 {[%emt 0:00:00]} 45. g3 {[%emt 0:00:00]} b4 {[%emt 0:00:00]} 46. Nd2 {[%emt 0:00:00]} Rg1 {[%emt 0:00:00]} 47. Kf2 {[%emt 0:00:00]} Rd1 {[%emt 0:00:00]} 48. Ke2 $1 {[%emt 0:00:00]} Rg1 {[%emt 0:00:00]} 49. Kf2 {[%emt 0:00:00]} Rd1 {[%emt 0:00:00]} 50. Ke2 {[%emt 0:00:00]} Rh1 51. Rc6 $17 Ke7 52. Kd3 Kf6 53. Ke2 Be7 54. Ke3 1/2-1/2

[Event "15th Deltalift Open 2018"]
[Site "Halmstad"]
[Date "2018.05.12"]
[Round "8"]
[White "Malmstig, Erik"]
[Black "Madebrink, Lars"]
[Result "1-0"]
[ECO "E70"]
[WhiteElo "2339"]
[BlackElo "2192"]
[Annotator "ChessBase"]
[PlyCount "113"]
[EventDate "2018.??.??"]
[EventType "swiss"]
[EventCountry "SWE"]
[SourceTitle "playchess.com"]
[Source "ChessBase"]
[SourceQuality "1"]
[TimeControl "1800+12"]

1. c4 {[%emt 0:00:00]} Nf6 {[%emt 0:00:00]} 2. Nc3 {[%emt 0:00:00]} g6 {[%emt 0:00:00]} 3. d4 {[%emt 0:00:00]} Bg7 {[%emt 0:00:00]} 4. e4 {[%emt 0:00:00]} d6 {[%emt 0:00:00]} 5. Nge2 {[%emt 0:00:00]} c6 {[%emt 0:00:00]} 6. Ng3 {[%emt 0:00:00]} e5 {[%emt 0:00:00]} 7. d5 {[%emt 0:00:00]} a5 {[%emt 0:00:00]} 8. Be2 {[%emt 0:00:00]} Na6 {[%emt 0:00:00]} 9. h4 {[%emt 0:00:00]} cxd5 {[%emt 0:00:00]} 10. cxd5 {[%emt 0:00:00]} h5 {[%emt 0:00:00]} 11. Bg5 {[%emt 0:00:00]} Qb6 {[%emt 0:00:00]} 12. Bb5+ {[%emt 0:00:00]} Kf8 {[%emt 0:00:00]} 13. Qe2 {[%emt 0:00:00]} Nc5 {[%emt 0:00:00]} 14. f3 {[%emt 0:00:00]} Bd7 {[%emt 0:00:00]} 15. Be3 {[%emt 0:00:00]} Rc8 {[%emt 0:00:00]} 16. Nf1 {[%emt 0:00:00]} Bh6 {[%emt 0:00:00]} 17. Bf2 {[%emt 0:00:00]} Kg7 {[%emt 0:00:00]} 18. Ne3 {[%emt 0:00:00]} Bxb5 {[%emt 0:00:00]} 19. Nxb5 {[%emt 0:00:00]} Rhd8 {[%emt 0:00:00]} 20. O-O {[%emt 0:00:00]} Qa6 {[%emt 0:00:00]} 21. Rac1 {[%emt 0:00:32]} Ne8 {[%emt 0:00:00]} 22. Rfe1 {[%emt 0:06:10]} a4 {[%emt 0:00:00]} 23. Rc3 {[%emt 0:02:09]} Nd7 {[%emt 0:01:33]} 24. Rec1 {[%emt 0:04:07]} Rc5 {[%emt 0:03:53]} 25. Rxc5 {[%emt 0:03:40]} Nxc5 {[%emt 0:01:33]} 26. Qf1 {[%emt 0:01:37]} Qa5 {[%emt 0:00:55]} 27. Nxd6 {[%emt 0:06:05]} Nxd6 {[%emt 0:03:24]} 28. Rxc5 {[%emt 0:00:00]} Qb4 {[%emt 0:00:27]} 29. Qe2 {[%emt 0:03:37]} a3 {[%emt 0:01:13]} 30. bxa3 {[%emt 0:04:11]} Qb1+ {[%emt 0:00:52]} 31. Nf1 {[%emt 0:01:39]} Ra8 {[%emt 0:00:37]} 32. Rc3 {[%emt 0:00:18]} Kf6 {[%emt 0:01:52]} 33. Rb3 {[%emt 0:00:41]} Qc1 {[%emt 0:02:08]} 34. Kh2 {[%emt 0:00:27]} Rxa3 {[%emt 0:00:34]} 35. Rxa3 {[%emt 0:01:00]} Qxa3 {[%emt 0:00:00]} 36. Qc2 {[%emt 0:00:06]} Qa6 {[%emt 0:00:32]} 37. Kg1 {[%emt 0:00:11]} Nb5 {[%emt 0:00:45]} 38. Qb2 {[%emt 0:00:23]} Qa4 {[%emt 0:01:00]} 39. Qb3 {[%emt 0:00:18]} Qxb3 {[%emt 0:00:28]} 40. axb3 {[%emt 0:00:00]} Bf8 {[%emt 0:00:08]} 41. Nd2 {[%emt 0:00:00]} Bb4 {[%emt 0:00:00]} 42. Nc4 {[%emt 0:00:00]} Bc3 {[%emt 0:00:00]} 43. Bg3 {[%emt 0:00:00]} Bd4+ {[%emt 0:00:00]} 44. Kf1 {[%emt 0:00:00]} Nc3 {[%emt 0:00:00]} 45. Ke1 {[%emt 0:00:00]} b5 {[%emt 0:00:00]} 46. Na3 {[%emt 0:00:00]} Bc5 {[%emt 0:00:00]} 47. Nc2 {[%emt 0:00:00]} Bd6 {[%emt 0:00:00]} 48. Kd2 {[%emt 0:00:00]} Na2 {[%emt 0:00:00]} 49. Bf2 {[%emt 0:00:00]} Ke7 {[%emt 0:00:00]} 50. Ne1 {[%emt 0:00:00]} f5 {[%emt 0:00:00]} 51. Nd3 {[%emt 0:00:00]} fxe4 {[%emt 0:00:00]} 52. fxe4 {[%emt 0:00:00]} Nb4 {[%emt 0:00:00]} 53. Bc5 {[%emt 0:00:00]} Na6 {[%emt 0:00:00]} 54. Bxd6+ {[%emt 0:00:00]} Kxd6 {[%emt 0:00:00]} 55. Kc3 {[%emt 0:00:00]} Nc7 {[%emt 0:00:00]} 56. Kb4 {[%emt 0:00:00]} Ne8 {[%emt 0:00:00]} 57. Kxb5 {[%emt 0:00:00] Kxd5} 1-0

[Event "15th Deltalift Open 2018"]
[Site "Halmstad"]
[Date "2018.05.12"]
[Round "8"]
[White "Hobber, Anders"]
[Black "Petersson, Baldur Teodor"]
[Result "1/2-1/2"]
[ECO "A48"]
[WhiteElo "2320"]
[BlackElo "2038"]
[Annotator "NA"]
[PlyCount "31"]
[EventDate "2018.??.??"]
[EventType "swiss"]
[EventCountry "SWE"]
[SourceTitle "playchess.com"]
[Source "ChessBase"]
[SourceQuality "1"]
[TimeControl "1800+12"]

{[%evp 8,23,12,14,7,10,12,3,47,36,45,32767,40,27,80,78,32767,85]} 1. d4 {[%emt 0:00:00]} Nf6 {[%emt 0:00:00]} 2. Nf3 {[%emt 0:00:00]} g6 {[%emt 0:00:00]} 3. Nc3 {[%emt 0:00:00]} d5 {[%emt 0:00:00]} 4. Bf4 {[%emt 0:00:00]} Bg7 {[%emt 0:00:00]} 5. e3 {[%emt 0:00:00]} c6 {[%emt 0:00:00]} 6. Be2 {[%emt 0:00:00]} Nbd7 {[%emt 0:00:00] LiveBook: 27 Games} 7. Ne5 {[%emt 0:00:00]} Ne4 {[%emt 0:00:00]} 8. Nxe4 {[%emt 0:00:00]} dxe4 {[%emt 0:00:00]} 9. Nxd7 {[%emt 0:00:00]} Bxd7 {[%emt 0:00:00]} 10. c3 {[%emt 0:00:00]} e6 {[%emt 0:00:00]} 11. Qc2 {[%emt 0:00:00]} f5 {[%emt 0:00:00]} 12. h4 $16 {[%emt 0:00:00]} Qe7 {[%emt 0:00:00]} 13. O-O-O {[%emt 0:00:00]} e5 14. dxe5 {[%emt 0:00:00]} Bxe5 {[%emt 0:00:00]} 15. Bxe5 {[%emt 0:00:00]} Qxe5 {[%emt 0:00:00]} 16. Qb3 {[%emt 0:00:00]} 1/2-1/2